fUST/lending_fUST_20240706
["ID","MTS","AMOUNT","RATE_DAILY","PERIOD"]
[331308204,1720206704998,-3810.29,0.00050958,120]
[331308205,1720206705007,-500.0,0.00050958,120]
[331308206,1720206705017,-500.0,0.00050958,120]
[331308207,1720206705026,-500.0,0.00050958,120]
[331308208,1720206705035,-500.0,0.00050958,120]
[331308209,1720206705044,-500.0,0.00050958,120]
[331308210,1720206705054,-209.83221673,0.00050958,120]
[331308211,1720206705063,-500.0,0.00050958,120]
[331308212,1720206705073,-4325.75,0.00050958,120]
[331308213,1720206705083,-592.14,0.00050958,120]
[331308214,1720206705237,-642.84,0.00050958,120]
[331308215,1720206705248,-1105.61,0.00050958,120]
[331308216,1720206705257,-500.0,0.00050958,120]
[331308217,1720206705267,-202.11172612,0.00050958,120]
[331308218,1720206705276,-500.0,0.00050958,120]
[331308219,1720206705286,-500.0,0.00050958,120]
[331308220,1720206705296,-500.0,0.00050958,120]
[331308221,1720206705305,-500.0,0.00050958,120]
[331308222,1720206705314,-500.0,0.00050958,120]
[331308223,1720206705324,-500.0,0.00050958,120]
[331308224,1720206705333,-500.0,0.00050958,22]
[331308225,1720206705343,-500.0,0.00050958,120]
[331308226,1720206705351,-500.0,0.00050958,120]
[331308227,1720206705360,-500.0,0.00050958,120]
[331308228,1720206705371,-1081.83,0.00050958,120]
[331308229,1720206705380,-500.0,0.00050958,120]
[331308230,1720206705389,-500.0,0.00050958,120]
[331308231,1720206705402,-2443.75,0.00050958,120]
[331308232,1720206705415,-500.0,0.00050958,120]
[331308233,1720206705435,-1454.27,0.00050958,120]
[331308234,1720206705457,-1837.33,0.00050958,120]
[331308235,1720206705467,-602.72603453,0.00050958,120]
[331308236,1720206705476,-535.69,0.00050958,120]
[331308237,1720206705485,-500.0,0.00050958,120]
[331308238,1720206705495,-606.80434811,0.00050958,120]
[331308239,1720206705505,-500.0,0.00050958,120]
[331308240,1720206705515,-745.91,0.00050958,120]
[331308241,1720206705524,-469.41348333,0.00050958,120]
[331308242,1720206705533,-500.0,0.00050958,120]
[331308243,1720206705542,-500.0,0.00050958,120]
[331308244,1720206705551,-500.0,0.00050958,120]
[331308245,1720206705560,-500.0,0.00050958,120]
[331308246,1720206705569,-549.99,0.00050958,120]
[331308247,1720206705578,-3460.08,0.00050958,120]
[331308248,1720206705587,-1459.1,0.00050958,120]
[331308249,1720206705595,-752.3,0.00050958,120]
[331308250,1720206705604,-500.0,0.00050958,120]
[331308251,1720206705613,-179.31819543,0.00050958,120]
[331308252,1720206705623,-500.0,0.00050958,120]
[331308253,1720206705632,-500.0,0.00050958,120]
[331308254,1720206705642,-842.07,0.00050958,120]
[331308255,1720206705651,-500.0,0.00050958,120]
[331308256,1720206705659,-500.0,0.00050958,120]
[331308257,1720206705669,-500.0,0.00050958,120]
[331308258,1720206705678,-9922.07,0.00050958,120]
[331308259,1720206705687,-500.0,0.00050958,120]
[331308260,1720206705696,-851.17,0.00050958,120]
[331308261,1720206705704,-7492.78,0.00050958,120]
[331308262,1720206705713,-500.0,0.00050958,120]
[331308263,1720206705722,-500.0,0.00050958,120]
[331308264,1720206705731,-5800.05,0.00050958,120]
[331308265,1720206705741,-500.0,0.00050958,120]
[331308266,1720206705750,-500.0,0.00050958,120]
[331308267,1720206705759,-500.0,0.00050958,120]
[331308268,1720206705768,-1802.57,0.00050958,120]
[331308269,1720206705783,-500.0,0.00050958,120]
[331308270,1720206705792,-500.0,0.00050958,120]
[331308271,1720206705802,-500.0,0.00050958,120]
[331308272,1720206705811,-500.0,0.00050958,120]
[331308273,1720206705821,-582.35280385,0.00050958,120]
[331308274,1720206705832,-500.0,0.00050958,120]
[331308275,1720206705842,-500.0,0.00050958,120]
[331308276,1720206705851,-512.93340753,0.00050958,120]
[331308277,1720206705863,-500.0,0.00050958,120]
[331308278,1720206705874,-663.25,0.00050958,120]
[331308279,1720206705884,-498.45170279,0.00050958,120]
[331308280,1720206705894,-1833.61,0.00050958,120]
[331308281,1720206705903,-500.0,0.00050958,120]
[331308282,1720206705912,-756.39,0.00050958,120]
[331308283,1720206705922,-500.0,0.00050958,120]
[331308284,1720206705932,-500.0,0.00050958,120]
[331308285,1720206705941,-842.46,0.00050958,120]
[331308286,1720206705950,-1064.97,0.00050958,120]
[331308287,1720206705960,-7628.12,0.00050958,120]
[331308288,1720206705970,-1266.72,0.00050958,120]
[331308289,1720206705979,-1841.02,0.00050958,120]
[331308290,1720206705988,-500.0,0.00050958,120]
[331308291,1720206705997,-500.0,0.00050958,120]
[331308292,1720206706007,-595.44,0.00050958,120]
[331308293,1720206706016,-842.07,0.00050958,120]
[331308294,1720206706025,-500.0,0.00050958,120]
[331308295,1720206706035,-1792.59,0.00050958,120]
[331308296,1720206706044,-500.0,0.00050958,120]
[331308297,1720206706053,-500.0,0.00050958,120]
[331308298,1720206706063,-660.5,0.00050958,120]
[331308299,1720206706072,-7850.86,0.00050958,120]
[331308300,1720206706082,-500.0,0.00050958,120]
[331308301,1720206706092,-2988.27,0.00050958,21]
[331308302,1720206706102,-500.0,0.00050958,120]
[331308303,1720206706111,-909.34,0.00050958,120]
[331308304,1720206706130,-511.8,0.00050958,120]
[331308305,1720206706203,-500.0,0.00050958,120]
[331308306,1720206706247,-500.0,0.00050958,120]
[331308307,1720206706260,-1389.78,0.00050958,120]
[331308308,1720206706279,-500.0,0.00050958,120]
[331308309,1720206706288,-500.0,0.00050958,120]
[331308310,1720206706296,-1165.51,0.00050958,120]
[331308311,1720206706305,-876.01,0.00050958,120]
[331308312,1720206706314,-5056.8,0.00050958,120]
[331308313,1720206706323,-500.0,0.00050958,120]
[331308314,1720206706333,-500.0,0.00050958,120]
[331308315,1720206706342,-500.0,0.00050958,120]
[331308316,1720206706351,-691.5,0.00050958,120]
[331308317,1720206706359,-518.49,0.00050958,120]
[331308318,1720206706370,-500.0,0.00050958,120]
[331308319,1720206706380,-500.0,0.00050958,120]
[331308320,1720206706390,-3968.12,0.00050958,120]
[331308321,1720206706399,-575.33,0.00050958,120]
[331308322,1720206706408,-500.0,0.00050958,120]
[331308323,1720206706417,-500.0,0.00050958,120]
[331308324,1720206706426,-1442.77,0.00050958,120]
[331308325,1720206706436,-689.65,0.00050958,120]
[331308326,1720206706445,-500.0,0.00050958,120]
[331308327,1720206706455,-10000.0,0.00051,51]
[331308328,1720206706464,-2500.0,0.00051,14]
[331308329,1720206706474,-221556.84116994,0.00051,120]
[331308357,1720207133605,266.799999,0.00030756,120]
[331308361,1720207645801,-30000.0,0.00018899,2]
[331308362,1720207646176,-300.0,0.00019163,2]
[331308363,1720207646805,-272.742543,0.00021096,2]
[331308364,1720207646826,-161.546614,0.00023708,2]
[331308365,1720207646847,-166.666666,0.00023813,2]
[331308366,1720207646868,-164.3,0.00024397,3]
[331308367,1720207646890,-166.666666,0.00024463,2]
[331308368,1720207646911,-250.0,0.00024695,2]
[331308369,1720207646932,-166.666666,0.00025112,2]
[331308370,1720207646952,-52100.07365113,0.00025501,2]
[331308371,1720207646973,-239.87156242,0.00025661,2]
[331308372,1720207646994,-166.666666,0.00025761,2]
[331308373,1720207647015,-166.666666,0.0002641,2]
[331308374,1720207647036,-704.37289901,0.00026574,2]
[331308375,1720207647056,-166.666666,0.0002706,2]
[331308376,1720207647080,-272.742543,0.00027195,2]
[331308377,1720207647105,-164.3,0.0002736,5]
[331308378,1720207647126,-197.13244658,0.00027999,2]
[331308379,1720207647146,-590.80081677,0.00029803,2]
[331308380,1720207647167,-521.79316301,0.00029813,7]
[331308381,1720207647187,-268.41032935,0.00029861,7]
[331308382,1720207647208,-160.09733992,0.00029879,2]
[331308383,1720207647230,-293.1691109,0.00029903,2]
[331308384,1720207647252,-293.1691109,0.00029903,2]
[331308385,1720207647273,-164.3,0.00030322,7]
[331308386,1720207647299,-25687.654443,0.00030746,4]
[331308387,1720207647318,-5639.2,0.00030756,30]
[331308388,1720207647338,-284.22582068,0.00030756,3]
[331308389,1720207647358,-253.98954123,0.00030756,4]
[331308390,1720207647381,-5606.64343783,0.00030756,4]
[331308391,1720207647405,-303.02802488,0.00030756,4]
[331308392,1720207647425,-1025.42362351,0.00030756,4]
[331308393,1720207647448,-51375.308886,0.00032378,4]
[331308394,1720207647469,-164.3,0.00033285,15]
[331308395,1720207647490,-272.742543,0.00033295,2]
[331308396,1720207647510,-480.13510852,0.00034585,30]
[331308397,1720207647530,-1061.23104722,0.00036229,4]
[331308398,1720207647550,-164.3,0.00036248,15]
[331308399,1720207647572,-937.79682264,0.00036351,4]
[331308400,1720207647592,-255.80508106,0.00036732,4]
[331308401,1720207647613,-272.742543,0.00039394,2]
[331308402,1720207647634,-371.39375676,0.00039994,4]
[331308403,1720207647654,-3990.00210664,0.00039999,4]
[331308404,1720207647675,-154.79103211,0.00039999,10]
[331308405,1720207647696,-360.48479037,0.00039999,4]
[331308406,1720207647717,-164.3,0.00042173,31]
[331308407,1720207647738,-528.46238349,0.00042629,30]
[331308408,1720207647760,-272.742543,0.00045494,2]
[331308409,1720207647781,-169.4,0.00046027,31]
[331308410,1720207647802,-877.0,0.00046062,2]
[331308411,1720207647824,-169.4,0.00046525,31]
[331308412,1720207647845,-500.0,0.00046574,120]
[331308413,1720207647868,-265.41936478,0.00046574,120]
[331308414,1720207647889,-500.0,0.00046574,120]
[331308415,1720207647911,-500.0,0.00046574,120]
[331308416,1720207647935,-500.0,0.00046574,120]
[331308417,1720207647956,-500.0,0.00046574,31]
[331308418,1720207648023,-500.0,0.00046574,120]
[331308419,1720207648045,-500.0,0.00046574,120]
[331308420,1720207648068,-500.0,0.00046574,120]
[331308421,1720207648092,-306.00091208,0.00046574,120]
[331308422,1720207648113,-500.0,0.00046574,31]
[331308423,1720207648134,-500.0,0.00046574,120]
[331308424,1720207648155,-591.98494098,0.00046574,31]
[331308425,1720207648177,-500.0,0.00046574,120]
[331308426,1720207648200,-500.0,0.00046574,120]
[331308427,1720207648225,-500.0,0.00046574,120]
[331308428,1720207648248,-627.5954823,0.00046574,31]
[331308429,1720207648269,-500.0,0.00046574,120]
[331308430,1720207648290,-500.0,0.00046574,120]
[331308431,1720207648314,-500.0,0.00046574,120]
[331308432,1720207648335,-500.0,0.00046574,120]
[331308433,1720207648358,-500.0,0.00046574,120]
[331308434,1720207648382,-500.0,0.00046574,120]
[331308435,1720207648403,-500.0,0.00046574,120]
[331308436,1720207648427,-500.0,0.00046574,120]
[331308437,1720207648448,-500.0,0.00046574,120]
[331308438,1720207648471,-500.0,0.00046574,120]
[331308439,1720207648494,-500.0,0.00046574,120]
[331308440,1720207648515,-500.0,0.00046574,120]
[331308441,1720207648539,-500.0,0.00046574,120]
[331308442,1720207648560,-500.0,0.00046574,120]
[331308443,1720207648581,-500.0,0.00046574,120]
[331308444,1720207648604,-500.0,0.00046574,120]
[331308445,1720207648624,-500.0,0.00046574,120]
[331308446,1720207648650,-500.0,0.00046574,120]
[331308447,1720207648670,-500.0,0.00046574,120]
[331308448,1720207648691,-500.0,0.00046574,120]
[331308449,1720207648714,-500.0,0.00046574,120]
[331308450,1720207648736,-500.0,0.00046574,120]
[331308451,1720207648757,-642.33623581,0.00046574,120]
[331308452,1720207648780,-500.0,0.00046574,120]
[331308453,1720207648804,-500.0,0.00046574,120]
[331308454,1720207648827,-418.37276966,0.00046574,120]
[331308455,1720207648851,-500.0,0.00046574,120]
[331308456,1720207648876,-500.0,0.00046574,120]
[331308457,1720207648897,-500.0,0.00046574,120]
[331308458,1720207648922,-500.0,0.00046574,120]
[331308459,1720207648946,-500.0,0.00046574,120]
[331308460,1720207648968,-200.0,0.00046574,120]
[331308461,1720207648992,-500.0,0.00046574,120]
[331308462,1720207649017,-475.5118309,0.00046574,120]
[331308463,1720207649038,-500.0,0.00046575,120]
[331308464,1720207649061,-10666.38,0.00046575,120]
[331308465,1720207649084,-10666.38,0.00046575,120]
[331308466,1720207649107,-150.0,0.000466,67]
[331308467,1720207649133,-15814.39175805,0.0004689,5]
[331308470,1720207836202,-2912.05769445,0.00016255,2]
[331308473,1720207836214,-604.99998376,0.00016255,2]
[331308475,1720207836228,-15033.85077606,0.00016255,2]
[331308477,1720207836240,-6688.48466544,0.00016255,2]
[331308615,1720207840047,-4760.60688029,0.00016255,2]
[331308616,1720207840058,-151.57276843,0.00023651,2]
[331308617,1720207840068,-293.1691109,0.00029861,2]
[331308618,1720207840078,-151.0,0.00031204,7]
[331308619,1720207840088,-166.666666,0.00031545,2]
[331308620,1720207840099,-166.666666,0.00032405,2]
[331308621,1720207840108,-166.666666,0.00033265,2]
[331308622,1720207840119,-166.666666,0.00034125,2]
[331308623,1720207840128,-13554.12599057,0.0003467,4]
[331308632,1720207848153,-56445.97296488,0.0003467,4]
[331308633,1720207848165,-166.666666,0.00034985,2]
[331308635,1720207848175,-166.666666,0.00035845,2]
[331308637,1720207848184,-793.78228741,0.00036351,4]
[331308638,1720207848195,-264.86125261,0.0003701,2]
[331308639,1720207848203,-215.10199221,0.0003701,4]
[331308640,1720207848213,-282.29590683,0.0003701,4]
[331308641,1720207848223,-360.48479037,0.0003701,4]
[331308642,1720207848232,-360.62808166,0.00037085,7]
[331308643,1720207848242,-360.62808166,0.00037259,7]
[331308644,1720207848252,-21043.7866886,0.00037269,4]
[331308645,1720207848261,-10969.18309023,0.00039792,2]
[331308646,1720207848271,-3990.00210664,0.0003999,4]
[331308647,1720207848283,-154.79103211,0.00043615,10]
[331308648,1720207848294,-801.21790865,0.00043615,7]
[331308649,1720207848303,-8025.96,0.00043829,3]
[331308650,1720207848315,-9631.15,0.00043839,3]
[331308651,1720207848325,-20000.0,0.00043849,3]
[331308652,1720207848334,-150.78889555,0.00045786,2]
[331308653,1720207848343,-877.0,0.00046062,2]
[331308654,1720207848353,-21043.7866886,0.00046413,5]
[331308655,1720207848363,-20000.0,0.00046423,4]
[331308656,1720207848372,-500.0,0.00046564,120]
[331308657,1720207848382,-500.0,0.00046564,120]
[331308658,1720207848391,-391.80027362,0.00046564,120]
[331308659,1720207848400,-538.27864469,0.00046564,31]
[331308660,1720207848410,-500.0,0.00046564,120]
[331308661,1720207848419,-500.0,0.00046564,120]
[331308662,1720207848428,-209.18142563,0.00046564,120]
[331308663,1720207848438,-500.0,0.00046564,120]
[331308664,1720207848448,-500.0,0.00046564,120]
[331308665,1720207848457,-500.0,0.00046564,120]
[331308666,1720207848467,-500.0,0.00046564,120]
[331308667,1720207848477,-77783.91727843,0.00046565,5]
[331308677,1720207849159,-0.00455345,0.00046565,5]
[331308753,1720208369419,1000.0,0.00012,7]
[331308773,1720208831046,-209.0,0.00014793,2]
[331308774,1720208831344,-1489.24109091,0.00014794,2]
[331308775,1720208831986,-1500.0,0.00014794,2]
[331308776,1720208832405,-2132.69930736,0.00014794,2]
[331308777,1720208832798,-2126.43441341,0.00014794,2]
[331308778,1720208833561,-789.859108,0.00014794,2]
[331308779,1720208834165,-1063.91419342,0.00015,2]
[331308780,1720208834467,-812.31944159,0.00019,3]
[331308781,1720208834866,-1116.9418809,0.0002,2]
[331308782,1720208835425,-3968.06642419,0.0002,2]
[331308783,1720208836043,-259.105417,0.00021096,2]
[331308784,1720208836349,-6364.3639553,0.00023,2]
[331308785,1720208836998,-259.105417,0.00027195,2]
[331308786,1720208837019,-150.29383564,0.00027411,2]
[331308787,1720208837041,-500.0,0.00027999,2]
[331308788,1720208837061,-30000.0,0.00027999,2]
[331308789,1720208837081,-21118.15674915,0.00028,10]
[331308790,1720208838278,-29364.19383845,0.00027999,2]
[331308791,1720208838673,-1206.03384875,0.00028,10]
[331308792,1720208839305,-244.9152285,0.00028677,2]
[331308793,1720208840168,-166.666666,0.00029766,2]
[331308794,1720208840870,-6688.3,0.00029783,3]
[331308795,1720208840898,-150.05901005,0.0003,7]
[331308796,1720208841285,-231.37431573,0.0003,4]
[331308797,1720208841977,-642.76758109,0.0003,4]
[331308798,1720208842907,-242.0,0.0003,2]
[331308799,1720208843319,-1002.845982,0.000305,3]
[331308800,1720208843696,-166.666666,0.00030578,2]
[331308801,1720208843727,-184.799999,0.0003065,2]
[331308802,1720208843782,-1967.1396881,0.00031049,24]
[331308803,1720208843810,-504.49555993,0.00031049,2]
[331308804,1720208843837,-473.66,0.00031205,30]
[331308805,1720208843874,-1967.1396881,0.0003136,24]
[331308806,1720208843909,-166.666666,0.00031389,2]
[331308807,1720208843935,-1967.1396881,0.0003167,24]
[331308808,1720208843986,-1967.1396881,0.00031981,24]
[331308809,1720208844390,-166.666666,0.00032201,2]
[331308810,1720208844731,-2118.45812565,0.00032291,26]
[331308811,1720208845178,-26009.79821968,0.000325,60]
[331308812,1720208845859,-1047.52276693,0.00032602,26]
[331308813,1720208846234,-242.0,0.00033,2]
[331308814,1720208847076,-166.666666,0.00033012,2]
[331308815,1720208847848,-14610.28493459,0.00033195,2]
[331308816,1720208848437,-259.105417,0.00033295,2]
[331308817,1720208849238,-166.666666,0.00033824,2]
[331308818,1720208849829,-579.29953505,0.00034,2]
[331308819,1720208850033,-399.36949262,0.00035,2]
[331308820,1720208851521,-164.616605,0.00035349,2]
[331308821,1720208851879,-154.85288975,0.0003558,4]
[331308822,1720208852135,-242.0,0.00036,2]
[331308823,1720208852652,-154.86392428,0.00037,4]
[331308824,1720208853278,-701.06567007,0.00038264,7]
[331308825,1720208854067,-793.78228741,0.00038264,4]
[331308826,1720208855004,-393.89323921,0.00039177,4]
[331308827,1720208855388,-249.92344191,0.00039393,10]
[331308828,1720208855997,-259.105417,0.00039394,2]
[331308829,1720208856362,-3990.00210664,0.00039999,4]
[331308830,1720208856726,-411.98261757,0.00040229,4]
[331308831,1720208857125,-659.63990418,0.00040807,2]
[331308832,1720208857502,-302.69857441,0.00040807,2]
[331308833,1720208858592,-531.43672027,0.00041095,30]
[331308834,1720208859257,-1029.08397233,0.00041095,4]
[331308835,1720208859839,-1392.46209166,0.00041095,4]
[331308836,1720208860421,-268.95171548,0.00041095,4]
[331308837,1720208860829,-21073.6120095,0.00041304,5]
[331308838,1720208861277,-948.9256647,0.00041589,4]
[331308839,1720208861882,-207.11846413,0.00041589,4]
[331308840,1720208862279,-435.0,0.00041941,2]
[331308841,1720208862311,-310.08964062,0.00041941,4]
[331308842,1720208862333,-150.80395486,0.00041986,2]
[331308843,1720208862355,-351.32038796,0.00041999,30]
[331308844,1720208862376,-169.4,0.00042155,31]
[331308845,1720208862398,-301.60790972,0.00042692,4]
[331308846,1720208862420,-152.80906433,0.00042884,30]
[331308847,1720208862445,-169.4,0.00043638,31]
[331308848,1720208862472,-169.4,0.00044132,31]
[331308849,1720208862502,-169.4,0.00044627,31]
[331308850,1720208862530,-447.78239498,0.00045,2]
[331308851,1720208862551,-169.4,0.00045121,31]
[331308852,1720208862571,-259.105417,0.00045494,2]
[331308853,1720208862595,-169.4,0.00045615,31]
[331308854,1720208862615,-877.0,0.00045893,2]
[331308855,1720208862639,-165.722,0.00045893,2]
[331308856,1720208862661,-1000.0,0.00046,46]
[331308857,1720208862682,-169.4,0.0004611,31]
[331308858,1720208862703,-1171.91271258,0.00046565,4]
[331308859,1720208862722,-290.27376141,0.00046565,4]
[331308860,1720208862743,-6407.59250038,0.00046565,4]
[331308861,1720208862763,-2000.0,0.00046565,14]
[331308862,1720208862785,-324.82950934,0.00046565,3]
[331308863,1720208862805,-490.04825733,0.00046565,4]
[331308864,1720208862826,-500.0,0.00046574,2]
[331308865,1720208862847,-169.4,0.00046604,60]
[331308866,1720208862868,-21073.6120095,0.0004689,5]
[331308867,1720208862889,-22810.22,0.000469,120]
[331308868,1720208862910,-1000.0,0.00047,47]
[331308869,1720208862931,-3000.0,0.00047,2]
[331308870,1720208862952,-167.0,0.00047,90]
[331308871,1720208862973,-169.4,0.00047098,60]
[331308872,1720208862994,-153.0,0.00047123,120]
[331308873,1720208863016,-153.0,0.00047123,120]
[331308874,1720208863036,-153.0,0.00047123,120]
[331308875,1720208863059,-306.64991586,0.0004757,120]
[331308876,1720208863080,-500.0,0.0004757,31]
[331308877,1720208863101,-236.36564553,0.0004757,120]
[331308878,1720208863125,-500.0,0.0004757,120]
[331308879,1720208863151,-500.0,0.0004757,120]
[331308880,1720208863176,-500.0,0.0004757,120]
[331308881,1720208863198,-361.4835934,0.0004757,31]
[331308882,1720208863220,-500.0,0.0004757,120]
[331308883,1720208863240,-317.54008209,0.0004757,120]
[331308884,1720208863262,-500.0,0.0004757,120]
[331308885,1720208863285,-500.0,0.0004757,120]
[331308886,1720208863307,-500.0,0.0004757,120]
[331308887,1720208863330,-500.0,0.0004757,120]
[331308888,1720208863352,-500.0,0.0004757,120]
[331308889,1720208863374,-500.0,0.0004757,120]
[331308890,1720208863397,-500.0,0.0004757,120]
[331308891,1720208863420,-500.0,0.0004757,120]
[331308892,1720208863441,-500.0,0.0004757,120]
[331308893,1720208863462,-500.0,0.0004757,120]
[331308894,1720208863483,-500.0,0.0004757,120]
[331308895,1720208863506,-500.0,0.0004757,120]
[331308896,1720208863533,-612.75442769,0.0004757,120]
[331308897,1720208863556,-602.70087074,0.0004757,120]
[331308898,1720208863579,-500.0,0.0004757,120]
[331308899,1720208863605,-500.0,0.0004757,120]
[331308900,1720208863630,-500.0,0.0004757,120]
[331308901,1720208863653,-500.0,0.0004757,120]
[331308902,1720208863676,-500.0,0.0004757,120]
[331308903,1720208863699,-500.0,0.0004757,120]
[331308904,1720208863721,-500.0,0.0004757,120]
[331308905,1720208863743,-500.0,0.0004757,120]
[331308906,1720208863765,-500.0,0.0004757,120]
[331308907,1720208863787,-500.0,0.0004757,120]
[331308908,1720208863809,-333.82632831,0.0004757,120]
[331308909,1720208863830,-500.0,0.0004757,120]
[331308910,1720208863850,-370.54513847,0.0004757,120]
[331308911,1720208863871,-200.0,0.0004757,120]
[331308912,1720208863892,-500.0,0.0004757,120]
[331308913,1720208863912,-200.0,0.0004757,120]
[331308914,1720208863935,-165.45595187,0.0004757,120]
[331308916,1720208863957,-500.0,0.0004757,31]
[331308917,1720208863978,-207.09828204,0.0004757,120]
[331308918,1720208863999,-200.0,0.0004757,31]
[331308919,1720208864176,-215.25275257,0.0004757,120]
[331308920,1720208864200,-500.0,0.0004757,120]
[331308921,1720208864257,-500.0,0.0004757,120]
[331308922,1720208864296,-500.0,0.0004757,120]
[331308923,1720208864988,-250.0,0.0004757,120]
[331308924,1720208865373,-54073.06090649,0.00047571,5]
[331308925,1720208866594,-789.859108,0.00014745,2]
[331308926,1720208866619,-150.30016482,0.00025395,2]
[331308927,1720208866649,-10303.18788718,0.00028,30]
[331308954,1720209035359,-151.57276841,0.0002669,2]
[331308955,1720209035369,-1890.53241108,0.00028,30]
[331308958,1720209035391,-2335.815942,0.00028,10]
[331308969,1720209039519,-547.3820516,0.00028,10]
[331308970,1720209039532,-4786.72545559,0.00028,10]
[331308971,1720209039541,-763.20815407,0.00028,2]
[331308972,1720209039552,-4172.94461587,0.00028,2]
[331308973,1720209039563,-189.04078712,0.00028,2]
[331308974,1720209039578,-166.666666,0.00028429,2]
[331308975,1720209039587,-166.666666,0.00029204,2]
[331308976,1720209039597,-159.2983416,0.0002979,2]
[331308977,1720209039607,-30000.0,0.00029903,2]
[331308978,1720209039620,-30000.0,0.00029903,2]
[331308979,1720209039630,-166.666666,0.00029979,2]
[331308980,1720209039640,-152.80906433,0.00030717,7]
[331308981,1720209039652,-166.666666,0.00030754,2]
[331308982,1720209039662,-300.0,0.00031191,2]
[331308983,1720209039673,-509.7935155,0.00031191,2]
[331308984,1720209039685,-288.54873536,0.00031191,2]
[331308985,1720209039696,-317.6820451,0.00031191,2]
[331308986,1720209039706,-283.45664934,0.00031191,2]
[331308987,1720209039717,-153.05087922,0.00031191,2]
[331308988,1720209039727,-511.29611507,0.00031191,2]
[331308989,1720209039738,-587.92208219,0.00031191,2]
[331308990,1720209039748,-221.53556508,0.00031191,2]
[331308991,1720209039759,-433.70222597,0.00031191,2]
[331308992,1720209039769,-166.666666,0.00031529,2]
[331308993,1720209039779,-166.666666,0.00032304,2]
[331308994,1720209039789,-1363.30880984,0.00033597,7]
[331308995,1720209039799,-732.73162384,0.00033807,4]
[331308996,1720209039810,-360.48479037,0.00033842,4]
[331308997,1720209039820,-580.80532597,0.00033842,4]
[331308999,1720209039830,-279.08863733,0.00033842,21]
[331309001,1720209039841,-305.32983827,0.00033842,7]
[331309003,1720209039851,-604.51651072,0.00033842,4]
[331309004,1720209039861,-542.74387844,0.00033842,4]
[331309006,1720209039871,-201.7137866,0.00033852,4]
[331309008,1720209039882,-284.22582068,0.00033939,3]
[331309009,1720209039894,-2186.60489059,0.00033939,5]
[331309010,1720209039904,-383.74778634,0.00033939,2]
[331309011,1720209039914,-393.89323921,0.00038499,4]
[331309012,1720209039925,-360.62808166,0.00039393,7]
[331309013,1720209039935,-2366.36379386,0.0003999,4]
[331309014,1720209039946,-264.86125261,0.00039994,2]
[331309015,1720209039956,-1254.26056582,0.00045515,2]
[331309016,1720209039967,-877.0,0.00045987,2]
[331309017,1720209039977,-152.80906433,0.00046017,30]
[331309018,1720209039987,-1254.2605658,0.00046438,2]
[331309019,1720209039997,-4644.65,0.0004689,3]
[331309020,1720209040007,-22810.22,0.000469,120]
[331309021,1720209040018,-5013.0,0.00047,120]
[331309022,1720209040028,-3000.0,0.00047,2]
[331309023,1720209040038,-153.0,0.00047123,120]
[331309024,1720209040048,-1254.2605658,0.0004736,2]
[331309025,1720209040058,-424.77576668,0.00047493,28]
[331309026,1720209040069,-5573.59,0.00047561,3]
[331309027,1720209040078,-192.0,0.00047571,2]
[331309028,1720209040089,-34814.93909351,0.00047571,5]
[331309029,1720209040099,-2000.0,0.00047571,120]
[331309030,1720209040110,-169.4,0.00047593,60]
[331309032,1720209040120,-152.0,0.00047593,60]
[331309034,1720209040131,-500.0,0.0004766,120]
[331309035,1720209040140,-455.26202462,0.0004766,120]